bitfinex/quotes_SOLUSD_20250829
["timestamp","ask_amount","ask_price","bid_price","bid_amount"]
[1756490737975,11.4147422,203.06,203.01,46.26586572]
[1756490738168,17.04940933,203.06,202.99,0.03]
[1756490738369,17.04940933,203.06,203.0,40.62]
[1756490738370,11.4147422,203.02,203.0,40.62]
[1756490739069,11.4147422,203.04,203.0,40.62]
[1756490739660,11.4147422,203.03,202.99,0.03]
[1756490739872,11.4147422,203.0,202.99,0.03]
[1756490740269,12.26690377,203.0,202.99,0.03]
[1756490740571,25.86249778,203.0,202.99,0.03]
[1756490740951,5.63610837,203.0,202.99,0.03]
[1756490741156,17.05085057,203.0,202.99,0.03]
[1756490743654,30.92544468,203.03,202.99,0.03]
[1756490743878,12.1247422,203.0,202.99,0.03]
[1756490744185,26.0,202.97,202.94,0.03]
[1756490744351,11.55690377,202.95,202.94,0.03]
[1756490744560,11.4147422,202.95,202.94,0.03]
[1756490744773,12.1247422,202.95,202.94,0.03]
[1756490745780,17.0520642,202.95,202.94,0.03]
[1756490746080,17.0520642,202.95,202.91,1e-08]
[1756490746081,39.73775558,202.92,202.91,1e-08]
[1756490746376,66.6577224,202.92,202.91,1e-08]
[1756490746579,67.3677224,202.92,202.91,1e-08]
[1756490746779,63.27723998,202.92,202.91,1e-08]
[1756490746978,38.26690377,202.92,202.91,1e-08]
[1756490747683,13.73775558,202.91,202.87,0.03]
[1756490747883,25.15249778,202.9,202.87,0.03]
[1756490748083,25.86249778,202.9,202.87,0.03]
[1756490748560,12.26690377,202.9,202.87,0.03]
[1756490748875,37.4147422,202.9,202.87,0.03]
[1756490749083,11.4147422,202.9,202.87,0.03]
[1756490749319,0.71,202.94,202.87,0.75]
[1756490749591,17.71402932,202.99,202.89,0.75]
[1756490749592,11.4147422,202.91,202.89,0.75]
[1756490749956,11.4147422,202.9,202.89,0.03]
[1756490751017,12.1247422,202.9,202.89,0.03]
[1756490751166,12.26690377,202.9,202.89,0.03]
[1756490751487,38.26690377,202.9,202.89,0.03]
[1756490751667,17.05327842,202.9,202.89,0.03]
[1756490752068,43.05327842,202.9,202.89,0.03]
[1756490752406,26.0,202.91,202.89,0.03]
[1756490752407,11.4147422,202.91,202.89,0.75]
[1756490753095,26.0,202.93,202.89,0.75]
[1756490753301,11.4147422,202.9,202.89,0.03]
[1756490754362,17.05327842,202.9,202.89,0.03]
[1756490754590,17.05327842,202.9,202.88,0.03]
[1756490754591,39.59559401,202.89,202.88,0.03]
[1756490754796,51.01033621,202.89,202.88,0.03]
[1756490754982,51.72033621,202.89,202.88,0.03]
[1756490755701,56.64911535,202.89,202.88,0.03]
[1756490756579,43.19568291,202.89,202.88,0.03]
[1756490756888,11.4147422,202.89,202.88,0.03]
[1756490757278,12.26690377,202.89,202.88,0.03]
[1756490757789,16.48568291,202.89,202.88,0.03]
[1756490758191,17.19568291,202.89,202.88,0.03]
[1756490760420,26.14216157,202.85,202.84,0.03]
[1756490760626,51.15249778,202.85,202.84,0.03]
[1756490760782,92.46249778,202.85,202.84,0.03]
[1756490761211,13.73775558,202.84,202.82,0.1]
[1756490761509,13.73775558,202.79,202.78,0.1]
[1756490761819,11.4147422,202.79,202.78,0.1]
[1756490762025,17.17811339,202.79,202.78,0.1]
[1756490763211,16.34595182,202.79,202.78,0.1]
[1756490763411,40.62,202.82,202.78,0.81]
[1756490763619,11.4147422,202.8,202.78,0.81]
[1756490763920,11.4147422,202.79,202.78,0.1]
[1756490764212,11.4147422,202.79,202.78,0.81]
[1756490765108,11.4147422,202.79,202.78,0.1]
[1756490765298,16.34595182,202.79,202.78,0.1]
[1756490766018,4.93120962,202.79,202.78,0.1]
[1756490766206,16.34595182,202.79,202.78,0.1]
[1756490766522,11.4147422,202.79,202.78,0.1]
[1756490767090,37.4147422,202.79,202.78,0.1]
[1756490767299,25.84249778,202.79,202.78,0.1]
[1756490767494,14.42775558,202.79,202.78,0.1]
[1756490767700,25.84249778,202.79,202.78,0.1]
[1756490768219,30.7737074,202.79,202.78,0.1]
[1756490768414,17.17811339,202.79,202.78,0.1]
[1756490769499,30.7737074,202.79,202.78,0.1]
[1756490770092,16.40595182,202.79,202.78,0.1]
[1756490770992,16.40595182,202.79,202.78,0.81]
[1756490770993,0.06,202.79,202.78,0.81]
[1756490772120,0.06,202.79,202.78,17.156195]
[1756490772489,0.06,202.79,202.78,30.75178901]
[1756490772921,0.06,202.79,202.78,30.89395058]
[1756490773222,1e-08,202.79,202.78,42.30869278]
[1756490773545,1e-08,202.79,202.78,42.80183806]
[1756490773705,1e-08,202.79,202.78,30.89395058]
[1756490774388,0.06,202.82,202.81,26.14216157]
[1756490774615,1e-08,202.82,202.81,51.64557011]
[1756490774928,0.06,202.84,202.82,13.73775558]
[1756490775095,0.06,202.84,202.83,91.65033621]
[1756490775295,0.06,202.84,202.83,80.94559401]
[1756490775495,0.06,202.84,202.83,51.72033621]
[1756490775723,0.06,202.84,202.83,92.50249778]
[1756490776429,0.06,202.84,202.83,71.43273492]
[1756490776601,11.4147422,203.01,202.95,11.4147422]
[1756490777212,0.06,203.04,202.96,0.71]
[1756490777435,11.4147422,202.99,202.93,12.1247422]
[1756490777613,11.4147422,202.97,202.93,0.71]
[1756490777822,11.4147422,202.97,202.91,11.4147422]
[1756490778044,11.4147422,202.98,202.92,11.4147422]
[1756490778338,16.54087299,203.0,202.94,11.4147422]
[1756490778535,5.1262115,203.0,202.93,0.71]
[1756490778728,16.5409537,203.0,202.94,11.4147422]
[1756490779045,26.0,202.97,202.9,11.4147422]
[1756490779340,0.69,202.99,202.92,11.4147422]
[1756490779515,11.4147422,202.98,202.92,11.4147422]
[1756490779926,11.4147422,202.99,202.93,12.1247422]
[1756490780824,31.1262115,203.0,202.95,11.4147422]
[1756490780825,0.2,203.0,202.95,11.4147422]
[1756490781053,0.2,203.0,202.96,0.71]
[1756490781054,16.54089725,203.0,202.96,0.71]
[1756490781236,11.6147422,203.0,202.96,0.71]
[1756490781409,0.2,203.0,202.96,0.71]
[1756490781810,0.2,203.0,202.97,12.1247422]
[1756490782034,0.2,203.0,202.98,11.4147422]
[1756490782239,0.2,203.0,202.98,12.1247422]
[1756490782446,0.2,203.0,202.99,0.71]
[1756490782945,0.2,203.0,202.99,17.05109325]
[1756490783629,0.2,203.0,202.96,0.71]
[1756490783821,0.2,203.0,202.97,0.71]
[1756490784024,0.2,203.0,202.98,0.71]
[1756490784543,0.2,203.0,202.94,4.9273536]
[1756490784544,0.2,203.0,202.99,12.1247422]
[1756490784764,0.2,203.0,202.99,17.05109325]
[1756490784940,0.06,203.04,202.99,17.05109325]
[1756490784941,0.06,203.04,203.0,13.59559401]
[1756490785241,0.06,203.07,203.03,25.01033621]
[1756490785431,0.2,203.18,203.14,37.4147422]
[1756490785742,0.2,203.18,203.17,37.4147422]
[1756490785938,14.68043667,203.3,203.18,13.73775558]
[1756490786116,14.68043667,203.3,203.24,11.4147422]
[1756490786440,0.69,203.3,203.25,11.4147422]
[1756490786632,0.69,203.3,203.26,11.4147422]
[1756490786944,0.2,203.31,203.29,11.4147422]
[1756490787118,0.2,203.31,203.27,13.59559401]
[1756490787318,0.2,203.31,203.3,17.20183263]
[1756490787727,0.2,203.31,203.27,13.59559401]
[1756490787944,0.2,203.31,203.3,17.20183263]
[1756490788244,0.2,203.31,203.29,40.96]
[1756490788420,18.09183263,203.31,203.25,17.20183263]
[1756490788625,23.01043747,203.31,203.25,17.20183263]
[1756490788828,17.20183263,203.3,203.23,13.59559401]
[1756490789022,17.20183263,203.3,203.24,17.20183263]
[1756490789227,17.20183263,203.3,203.24,58.16183263]
[1756490789422,17.20183263,203.3,203.24,17.20183263]
[1756490789642,5.80860484,203.31,203.24,40.94]
[1756490789948,17.20183263,203.26,203.2,17.20183263]
[1756490790121,17.20183263,203.23,203.18,40.92]
[1756490790325,17.20183263,203.22,203.16,17.20183263]
[1756490790526,17.20183263,203.22,203.14,0.71]
[1756490790527,17.20183263,203.21,203.14,0.71]
[1756490790728,22.12293432,203.21,203.15,58.14183263]
[1756490790929,17.20183263,203.2,203.15,40.96]
[1756490791133,17.20183263,203.2,203.15,58.16183263]
[1756490791943,17.20183263,203.2,203.15,40.96]
[1756490792138,17.20183263,203.19,203.14,17.20183263]
[1756490792342,17.20183263,203.17,203.09,13.59559401]
[1756490792533,17.20183263,203.16,203.12,40.92]
[1756490792731,17.20183263,203.16,203.09,13.59559401]
[1756490792929,17.20183263,203.15,203.09,30.79742664]
[1756490793245,17.20183263,203.1,203.07,40.92]
[1756490793448,0.66,203.12,203.06,40.94]
[1756490793650,17.20183263,203.1,203.06,40.94]
[1756490794233,17.20183263,203.09,203.04,17.20183263]
[1756490794542,17.20183263,203.09,203.03,17.20183263]
[1756490794753,17.20183263,203.09,203.03,40.9]
[1756490794930,17.20183263,203.09,203.04,17.20183263]
[1756490795333,17.20183263,203.08,203.02,17.20183263]
[1756490795755,17.20183263,203.06,203.03,40.88]
[1756490796858,0.66,203.11,203.04,0.7]
[1756490797061,17.20183263,203.08,203.03,40.88]
[1756490797363,17.20183263,203.09,203.03,58.08183263]
[1756490797538,17.20183263,203.08,203.03,40.88]
[1756490797865,17.20183263,203.07,203.04,40.88]
[1756490798034,17.20183263,203.08,203.04,40.88]
[1756490798240,4.923989,203.09,203.04,40.88]
[1756490798465,0.66,203.11,203.05,17.90183263]
[1756490798466,17.20183263,203.11,203.05,17.90183263]
[1756490798640,17.20183263,203.11,203.05,17.20183263]
[1756490799038,17.20183263,203.09,203.03,30.79742664]
[1756490799266,17.20183263,203.09,203.04,40.84]
[1756490799452,17.20183263,203.09,203.04,17.20183263]
[1756490799761,17.20183263,203.09,203.05,40.82]
[1756490800468,22.12584696,203.09,203.05,40.82]
[1756490800840,22.1255387,203.1,203.05,40.82]
[1756490801049,22.1255387,203.1,203.06,40.82]
[1756490801553,17.20183263,203.07,203.05,40.78]
[1756490802445,17.20183263,203.08,203.05,40.78]
[1756490802650,22.1260351,203.08,203.05,40.78]
[1756490803590,22.1260351,203.08,203.02,17.20183263]
[1756490803763,22.1260351,203.08,203.03,40.74]
[1756490803964,22.1261502,203.08,203.02,17.20183263]
[1756490804267,17.20183263,203.06,203.0,17.20183263]
[1756490804462,17.20183263,203.06,203.01,40.7]
[1756490804762,22.12655373,203.06,203.0,17.20183263]
[1756490805087,22.12655373,203.06,203.02,40.72]
[1756490805232,22.12655373,203.06,203.0,17.20183263]
[1756490805442,22.12655373,203.06,203.02,40.7]
[1756490805634,17.20183263,203.04,203.01,40.68]
[1756490805867,17.20183263,203.04,202.98,17.20183263]
[1756490806102,17.20183263,203.04,202.91,0.7]
[1756490806103,17.20183263,202.99,202.91,0.7]
[1756490806240,17.20183263,202.98,202.92,40.68]
[1756490806440,17.20183263,202.99,202.93,17.20183263]
[1756490806761,17.20183263,202.98,202.92,0.7]
[1756490806942,17.86183263,203.0,202.94,17.20183263]
[1756490807147,26.66,203.04,202.95,17.20183263]
[1756490807381,26.66,203.04,202.99,0.03]
[1756490807581,0.66,203.08,203.0,11.43895574]
[1756490807761,11.43895574,203.05,202.99,0.03]
[1756490808079,11.43895574,203.0,202.99,40.73]
[1756490808259,12.09895574,203.0,202.99,40.73]
[1756490808767,12.09895574,203.0,202.99,0.03]
[1756490809850,11.43895574,203.0,202.99,0.03]
[1756490810054,0.66,203.03,202.99,0.03]
[1756490810055,11.43895574,203.03,202.99,0.03]
[1756490810255,26.0,203.05,202.99,11.46895574]
[1756490810466,11.43895574,203.04,202.99,0.03]
[1756490810684,12.09895574,203.03,202.99,0.03]
[1756490810882,11.43895574,203.03,202.99,0.03]
[1756490811464,11.43895574,203.0,202.99,0.03]
[1756490811965,12.09895574,203.0,202.99,0.03]
[1756490812502,11.43895574,203.0,202.99,0.03]
[1756490812692,17.02506411,203.0,202.99,0.03]
[1756490813160,43.02506411,203.0,202.99,0.03]
[1756490814162,38.09895574,203.0,202.99,0.03]
[1756490814787,43.02506411,203.0,202.99,0.03]
[1756490817768,13.73775558,202.99,202.97,0.03]
[1756490818077,37.58111731,202.98,202.97,0.03]
[1756490818278,38.24111731,202.98,202.97,0.03]
[1756490818479,26.66,202.98,202.97,0.03]
[1756490818698,26.0,202.99,202.97,0.03]
[1756490818985,11.43895574,202.98,202.97,0.03]
[1756490819486,17.02554949,202.98,202.97,0.03]
[1756490820362,17.02554949,202.98,202.88,54.49775558]
[1756490820363,5.58659375,202.98,202.88,0.7]
[1756490820563,5.58659375,202.98,202.86,13.59559401]
[1756490820564,11.43895574,202.91,202.86,0.66]
[1756490820877,11.43895574,202.91,202.87,0.66]
[1756490821076,16.36726481,202.91,202.87,0.66]
[1756490821291,11.43895574,202.91,202.85,16.36869213]
[1756490821467,4.92781604,202.93,202.86,0.66]
[1756490821668,11.43895574,203.01,202.92,11.43895574]
[1756490821884,11.43895574,203.02,202.96,11.43895574]
[1756490822189,4.92538048,203.03,202.85,0.66]
[1756490822190,26.0,202.94,202.85,0.66]
[1756490822399,11.43895574,202.91,202.86,26.96]
[1756490822715,17.23883169,203.03,202.9,11.43895574]
[1756490823003,11.43895574,202.97,202.91,12.09895574]
[1756490823176,11.58111731,203.04,202.94,11.43895574]
[1756490823177,4.92538048,203.03,202.94,11.43895574]
[1756490823384,11.43895574,203.0,202.95,41.32]
[1756490823688,11.43895574,202.98,202.93,41.32]
[1756490823907,0.72,203.06,202.96,11.43895574]
[1756490824125,0.72,203.09,203.02,11.43895574]
[1756490824410,13.59559401,203.14,202.98,13.59559401]
[1756490824411,11.43895574,203.13,203.06,11.43895574]
[1756490824773,11.43895574,203.13,203.07,41.38]
[1756490824999,0.06,203.18,203.11,11.43895574]
[1756490825000,5.7019585,203.18,203.11,11.43895574]
[1756490825207,5.7019585,203.18,203.12,41.38]
[1756490825208,11.43895574,203.17,203.12,41.38]
[1756490825376,5.70183031,203.18,203.14,11.43895574]
[1756490825377,0.06,203.18,203.14,11.43895574]
[1756490825579,0.06,203.18,203.15,11.43895574]
[1756490825778,0.06,203.18,203.16,41.46]
[1756490825982,0.06,203.18,203.1,14.25559401]
[1756490826199,0.06,203.18,203.15,41.46]
[1756490826200,11.49895574,203.18,203.15,41.46]
[1756490826412,0.06,203.18,203.17,11.43895574]
[1756490826582,0.06,203.18,203.16,41.5]
[1756490826771,0.06,203.18,203.17,11.43895574]
[1756490826982,0.06,203.18,203.17,53.63895574]
[1756490827176,0.06,203.18,203.17,52.97895574]
[1756490827372,0.06,203.18,203.17,59.42360938]
[1756490827578,0.06,203.18,203.17,17.22360938]
[1756490828083,0.06,203.18,203.17,41.52]
[1756490828512,0.06,203.18,203.17,58.74360938]
[1756490828681,0.06,203.18,203.17,58.72360938]
[1756490829579,0.06,203.18,203.17,17.22360938]
[1756490829983,0.06,203.18,203.17,58.70360938]
[1756490830504,0.06,203.18,203.17,17.88360938]
[1756490830812,0.06,203.18,203.17,37.03555012]
[1756490830997,0.06,203.21,203.2,26.0]
[1756490831190,0.2,203.31,203.21,18.51661167]
[1756490831485,0.2,203.31,203.3,17.22360938]
[1756490831693,0.2,203.31,203.3,58.68360938]
[1756490832632,0.2,203.31,203.27,26.0]
[1756490832910,0.2,203.31,203.3,58.68360938]
[1756490833112,0.2,203.31,203.3,17.22360938]
[1756490833288,0.2,203.31,203.3,58.66360938]
[1756490833488,0.2,203.31,203.3,17.22360938]
[1756490833688,0.2,203.31,203.3,58.66360938]
[1756490834297,0.2,203.31,203.3,17.22360938]
[1756490834689,0.2,203.31,203.3,58.62360938]
[1756490834893,0.2,203.31,203.26,13.59559401]
[1756490835081,5.11879859,203.31,203.27,41.38]
[1756490835282,0.92,203.31,203.27,58.60360938]
[1756490835485,5.83862259,203.31,203.27,58.60360938]
[1756490836006,0.92,203.31,203.28,41.36]
[1756490836310,0.2,203.31,203.29,0.61]
[1756490836525,0.2,203.31,203.3,41.36]
[1756490836975,0.2,203.31,203.3,58.58360938]
[1756490837182,0.92,203.31,203.24,30.92027857]
[1756490837402,0.92,203.31,203.27,17.22360938]
[1756490837590,0.92,203.31,203.28,58.62360938]
[1756490837793,0.2,203.31,203.29,41.4]
[1756490837986,0.2,203.31,203.3,17.22360938]
[1756490838621,0.2,203.31,203.29,17.22360938]
[1756490838787,0.2,203.31,203.28,17.22360938]
[1756490839107,0.2,203.31,203.29,41.36]
[1756490839292,0.2,203.31,203.3,17.22360938]
[1756490839695,0.2,203.31,203.3,59.17360938]
[1756490839889,1e-08,203.35,203.3,59.17360938]
[1756490839890,1e-08,203.35,203.34,13.59559401]
[1756490840205,1e-08,203.35,203.34,72.15920339]
[1756490840378,1e-08,203.35,203.34,72.71136496]
[1756490840583,1e-08,203.35,203.34,77.6292365]
[1756490841200,1e-08,203.35,203.34,23.92931669]
[1756490841510,1e-08,203.35,203.34,36.2892365]
[1756490841709,1e-08,203.35,203.34,77.6292365]
[1756490842011,1e-08,203.35,203.34,41.32]
[1756490842199,1e-08,203.35,203.34,58.54360938]
[1756490842394,1e-08,203.35,203.34,84.54360938]
[1756490842706,1e-08,203.35,203.34,77.6092365]
[1756490842905,1e-08,203.35,203.34,36.2892365]
[1756490843108,1e-08,203.35,203.34,77.6092365]
[1756490843909,1e-08,203.35,203.34,22.14148092]
[1756490844210,1e-08,203.35,203.34,77.03707493]
[1756490844510,1e-08,203.35,203.34,103.03707493]
[1756490845491,1e-08,203.35,203.34,62.2892365]
[1756490845797,1e-08,203.35,203.34,103.5692365]
[1756490846000,1e-08,203.36,203.35,13.73775558]
[1756490846201,0.72,203.48,203.35,13.73775558]
[1756490846202,1e-08,203.38,203.37,39.73775558]
[1756490846392,1e-08,203.38,203.37,57.45307956]
[1756490846592,1e-08,203.38,203.37,81.42775558]
[1756490846795,1e-08,203.38,203.37,61.87851104]
[1756490846989,1e-08,203.38,203.37,103.15851104]
[1756490847299,1e-08,203.38,203.37,97.73193862]
[1756490847694,0.72,203.5,203.38,13.59559401]
[1756490848005,0.72,203.5,203.42,13.73775558]
[1756490848203,0.72,203.49,203.43,41.26]
[1756490848513,0.72,203.48,203.44,41.26]
[1756490848721,0.72,203.47,203.44,52.64703696]
[1756490848901,0.72,203.46,203.44,52.64703696]
[1756490849213,0.72,203.46,203.39,13.59559401]
[1756490849214,0.72,203.45,203.39,4.91650364]
[1756490849520,0.72,203.45,203.41,11.38703696]
[1756490849697,0.72,203.44,203.42,41.26]
[1756490849900,0.72,203.49,203.43,11.38703696]
[1756490850119,0.72,203.49,203.46,11.38703696]
[1756490850412,0.72,203.49,203.47,41.24]
[1756490850614,0.72,203.49,203.47,52.62703696]
[1756490850805,0.79,203.52,203.47,52.62703696]
[1756490851002,0.69,203.51,203.47,11.38703696]
[1756490851311,0.1,203.52,203.49,11.38703696]
[1756490851625,0.1,203.52,203.48,41.24]
[1756490851925,0.1,203.52,203.49,41.22]
[1756490852225,0.1,203.52,203.51,11.38703696]
[1756490852597,0.1,203.52,203.51,52.62703696]
[1756490853011,0.1,203.52,203.51,16.30080041]
[1756490853319,0.1,203.52,203.51,57.52080041]
[1756490853908,0.1,203.52,203.51,57.50080041]
[1756490854410,0.1,203.52,203.48,38.28590082]
[1756490854411,0.1,203.52,203.48,4.91445016]
[1756490854607,0.1,203.52,203.49,52.56703696]
[1756490854801,0.1,203.52,203.51,11.38703696]
[1756490855122,0.1,203.52,203.51,71.21855599]
[1756490855423,0.69,203.61,203.55,39.59559401]
[1756490855606,0.69,203.64,203.6,11.38703696]
[1756490855929,0.69,203.63,203.6,52.58703696]
[1756490856098,11.38703696,203.66,203.6,52.62703696]
[1756490856099,0.69,203.62,203.6,52.62703696]
[1756490856497,26.0,203.7,203.58,26.0]
[1756490856716,0.69,203.69,203.6,11.38703696]
[1756490856907,0.69,203.68,203.62,11.38703696]
[1756490857117,0.69,203.67,203.62,11.38703696]
[1756490857325,0.69,203.66,203.62,11.38703696]
[1756490857538,0.69,203.65,203.62,11.38703696]
[1756490857739,0.69,203.65,203.62,52.64703696]
[1756490858641,0.69,203.64,203.61,11.38703696]
[1756490858828,0.69,203.64,203.5,20.0]
[1756490858829,11.38703696,203.62,203.47,13.59559401]
[1756490859017,38.07703696,203.64,203.5,0.03]
[1756490859018,11.38703696,203.55,203.5,0.03]
[1756490859497,12.07703696,203.55,203.51,41.26]
[1756490859698,11.38703696,203.53,203.5,0.03]
[1756490859910,11.38703696,203.52,203.5,0.03]
[1756490860206,12.07703696,203.52,203.5,0.03]
[1756490860623,11.38703696,203.51,203.5,0.03]
[1756490860831,12.07703696,203.51,203.47,0.03]
[1756490861133,12.07703696,203.5,203.47,0.03]
[1756490861637,11.38703696,203.51,203.47,0.03]
[1756490862007,12.07703696,203.5,203.47,0.03]
[1756490862419,11.38703696,203.5,203.47,0.03]
[1756490863222,11.38703696,203.52,203.47,0.03]
[1756490863823,12.07703696,203.51,203.47,0.03]
[1756490864036,11.38703696,203.48,203.47,0.03]
[1756490864329,26.69,203.5,203.47,0.03]
[1756490864510,12.07703696,203.48,203.47,0.03]
[1756490864714,16.99152487,203.48,203.47,0.03]
[1756490865226,16.99152487,203.48,203.32,4.93952418]
[1756490865227,26.0,203.45,203.32,4.93952418]
[1756490865402,11.38703696,203.35,203.31,0.47]
[1756490865599,11.38703696,203.34,203.28,17.21604803]
[1756490865798,26.0,203.45,203.28,17.21604803]
[1756490865799,11.38703696,203.36,203.3,11.38703696]
[1756490866032,11.38703696,203.36,203.3,37.38703696]
[1756490866218,11.38703696,203.36,203.31,13.59559401]
[1756490866833,11.38703696,203.32,203.26,4.91980714]
[1756490867030,0.69,203.35,203.26,28.60636195]
[1756490867225,11.38703696,203.35,203.3,13.59559401]
[1756490867438,17.20042422,203.31,203.26,0.49198071]
[1756490867626,17.20042422,203.28,203.23,4.95052436]
[1756490867813,0.69,203.32,203.25,26.0]
[1756490868011,17.20042422,203.27,203.23,46.33052436]
[1756490868337,17.20042422,203.27,203.24,26.0]
[1756490868508,17.20042422,203.27,203.25,26.0]
[1756490868711,17.20042422,203.26,203.23,13.62559401]
[1756490868934,0.69,203.29,203.23,13.62559401]
[1756490869116,17.20042422,203.26,203.23,13.62559401]
[1756490869441,17.20042422,203.24,203.23,0.03]
[1756490869614,17.89042422,203.24,203.23,0.03]
[1756490870936,22.8107155,203.24,203.23,0.03]
[1756490871343,56.9381798,203.21,203.2,0.03]
[1756490871634,26.0,203.21,203.18,0.03]
[1756490871838,17.20042422,203.19,203.18,0.03]
[1756490872533,17.89042422,203.19,203.18,0.03]
[1756490873714,4.92074127,203.23,203.18,0.03]
[1756490873715,0.69,203.23,203.18,0.03]
[1756490873915,17.20042422,203.2,203.18,0.03]
[1756490874127,17.20042422,203.19,203.18,0.03]
[1756490874632,17.89042422,203.19,203.18,0.03]
[1756490874848,17.20042422,203.19,203.18,0.03]
[1756490875344,17.89042422,203.19,203.07,4.9244103]
[1756490875655,17.20042422,203.14,203.08,30.79601823]
[1756490875834,17.20042422,203.13,203.08,13.59559401]
[1756490876147,17.20042422,203.14,203.08,30.79601823]
[1756490876332,17.20042422,203.14,203.08,31.35601823]
[1756490876718,17.20042422,203.14,203.09,4.92392535]
[1756490876917,17.20042422,203.13,203.09,4.92392535]
[1756490877114,17.20042422,203.18,203.12,17.20042422]
[1756490877638,17.20042422,203.17,203.12,26.0]
[1756490878433,17.20042422,203.17,203.13,4.92295574]
[1756490878834,17.20042422,203.17,203.15,0.03]
[1756490879151,26.0,203.25,203.16,17.20042422]
[1756490879454,17.20042422,203.2,203.15,0.03]
[1756490880217,17.20042422,203.17,203.15,0.03]
[1756490880417,17.20042422,203.16,203.15,0.03]
[1756490880645,17.89042422,203.16,203.13,0.03]
[1756490880848,0.66,203.15,203.13,0.03]
[1756490881058,0.66,203.16,203.13,0.03]
[1756490881236,0.66,203.14,203.13,0.03]
[1756490881750,17.86042422,203.14,203.13,0.03]
[1756490882128,0.66,203.17,203.13,0.03]
[1756490882432,0.14216157,203.21,203.13,0.03]
[1756490882433,17.20042422,203.14,203.13,0.03]
[1756490883022,17.86042422,203.14,203.13,0.03]
[1756490883428,22.78313761,203.14,203.13,0.03]
[1756490883837,17.86042422,203.14,203.13,0.03]
[1756490884149,39.98356183,203.14,203.13,0.03]
[1756490884457,53.72131741,203.14,203.13,0.03]
[1756490884667,17.20042422,203.03,203.02,0.2]
[1756490885028,17.86042422,203.03,203.02,0.2]
[1756490885445,17.20042422,203.03,203.02,0.2]
[1756490885924,17.86042422,203.03,203.02,0.2]
[1756490886144,0.66,203.06,203.02,5.12553111]
[1756490886355,17.20042422,203.05,203.02,0.2]
[1756490886536,17.20042422,203.05,203.02,5.1255962]
[1756490886853,42.12,203.06,203.02,5.1255962]
[1756490886854,17.20042422,203.06,203.02,5.1255962]
[1756490887426,17.20042422,203.04,203.02,0.2]
[1756490887644,17.20042422,203.04,203.02,5.12562214]
[1756490887853,58.64042422,203.07,203.02,5.12562214]
[1756490888052,26.0,203.13,203.03,13.59559401]
[1756490888222,17.20042422,203.1,203.04,17.20042422]
[1756490888427,0.66,203.15,203.06,17.20042422]
[1756490888670,17.20042422,203.12,203.07,4.9244103]
[1756490889043,17.20042422,203.13,203.07,34.43586027]
[1756490889245,17.20042422,203.11,203.07,4.9244103]
[1756490889455,17.20042422,203.1,203.07,4.9244103]
[1756490889760,17.20042422,203.11,203.07,4.9244103]
[1756490889929,0.66,203.15,203.08,17.20042422]
[1756490890130,17.20042422,203.14,203.08,17.20042422]
[1756490890334,17.20042422,203.11,203.07,4.9244103]
[1756490890534,17.20042422,203.08,203.04,4.9251379]
[1756490890859,17.20042422,203.11,203.05,31.5581798]
[1756490891042,17.20042422,203.12,203.06,17.20042422]
[1756490891238,17.20042422,203.13,203.07,17.20042422]
[1756490891439,17.20042422,203.13,203.05,0.76216157]
[1756490891440,17.20042422,203.12,203.06,30.79601823]
[1756490891939,17.20042422,203.11,203.06,13.59559401]
[1756490892151,17.20042422,203.11,203.06,30.79601823]
[1756490892353,41.46,203.14,203.06,30.79601823]
[1756490892354,17.20042422,203.12,203.06,31.41601823]
[1756490892541,17.20042422,203.07,203.02,0.2]
[1756490892746,17.20042422,203.03,203.02,0.2]
[1756490894549,17.86042422,203.03,203.02,0.2]